[Event "Titled Tuesday Blitz August 22 Late 2023"]
[White "Xiong, Jeffery"]
[Black "Andreikin, Dmitry"]
[WhiteFideId "2047640"]
[BlackFideId "4158814"]
[WhiteElo "3019"]
[BlackElo "3005"]
[Result "1-0"]
[Round "10"]
[TimeControl "180+1"]
[Date "2023.08.22"]
[WhiteClock "0:00:26"]
[BlackClock "0:00:00"]
[Board "4"]

1. e4 {[%clk 0:03:00]}  g6 {[%clk 0:02:59]} 2. d4 {[%clk 0:03:00]}  Bg7 {[%clk 0:03:00]} 3. Nc3 {[%clk 0:03:00]}  c6 {[%clk 0:02:59]} 4. Nf3 {[%clk 0:02:48]}  d5 {[%clk 0:02:56]} 5. h3 {[%clk 0:02:49]}  dxe4 {[%clk 0:02:56]} 6. Nxe4 {[%clk 0:02:49]}  Nf6 {[%clk 0:02:56]} 7. Bd3 {[%clk 0:02:49]}  Nxe4 {[%clk 0:02:54]} 8. Bxe4 {[%clk 0:02:50]}  Bf5 {[%clk 0:02:55]} 9. Bxf5 {[%clk 0:02:47]}  Qa5+ {[%clk 0:02:55]} 10. c3 {[%clk 0:02:47]}  Qxf5 {[%clk 0:02:55]} 11. O-O {[%clk 0:02:48]}  O-O {[%clk 0:02:55]} 12. Re1 {[%clk 0:02:48]}  Re8 {[%clk 0:02:55]} 13. a4 {[%clk 0:02:46]}  Nd7 {[%clk 0:02:54]} 14. Qb3 {[%clk 0:02:42]}  Rab8 {[%clk 0:02:35]} 15. a5 {[%clk 0:02:25]}  a6 {[%clk 0:02:33]} 16. Be3 {[%clk 0:02:25]}  Qb5 {[%clk 0:02:30]} 17. Qxb5 {[%clk 0:02:21]}  cxb5 {[%clk 0:02:28]} 18. Bg5 {[%clk 0:02:16]}  e6 {[%clk 0:02:27]} 19. Ne5 {[%clk 0:02:13]}  Nxe5 {[%clk 0:02:14]} 20. dxe5 {[%clk 0:02:14]}  h6 {[%clk 0:02:15]} 21. Be3 {[%clk 0:02:03]}  Rbd8 {[%clk 0:02:06]} 22. f4 {[%clk 0:02:00]}  Rd5 {[%clk 0:01:56]} 23. Red1 {[%clk 0:01:59]}  Red8 {[%clk 0:01:56]} 24. Rxd5 {[%clk 0:01:57]}  Rxd5 {[%clk 0:01:57]} 25. Kf2 {[%clk 0:01:57]}  h5 {[%clk 0:01:45]} 26. g3 {[%clk 0:01:56]}  Kf8 {[%clk 0:01:33]} 27. Kf3 {[%clk 0:01:56]}  Ke8 {[%clk 0:01:32]} 28. Ke4 {[%clk 0:01:56]}  f5+ {[%clk 0:01:14]} 29. exf6 {[%clk 0:01:52]}  Bxf6 {[%clk 0:01:15]} 30. Rc1 {[%clk 0:01:53]}  Kd7 {[%clk 0:01:13]} 31. b4 {[%clk 0:01:49]}  Rd6 {[%clk 0:00:49]} 32. c4 {[%clk 0:01:46]}  bxc4 {[%clk 0:00:46]} 33. Rxc4 {[%clk 0:01:47]}  Rd1 {[%clk 0:00:30]} 34. g4 {[%clk 0:01:45]}  h4 {[%clk 0:00:28]} 35. Bb6 {[%clk 0:01:40]}  Re1+ {[%clk 0:00:26]} 36. Kf3 {[%clk 0:01:36]}  Rf1+ {[%clk 0:00:26]} 37. Kg2 {[%clk 0:01:32]}  Rb1 {[%clk 0:00:26]} 38. g5 {[%clk 0:01:08]}  Be7 {[%clk 0:00:22]} 39. Rc7+ {[%clk 0:01:08]}  Ke8 {[%clk 0:00:22]} 40. Rxb7 {[%clk 0:01:06]}  Rb2+ {[%clk 0:00:09]} 41. Kf3 {[%clk 0:01:06]}  Rb3+ {[%clk 0:00:05]} 42. Kg4 {[%clk 0:01:03]}  Bxb4 {[%clk 0:00:03]} 43. Bf2 {[%clk 0:00:35]}  Rb2 {[%clk 0:00:03]} 44. Be1 {[%clk 0:00:33]}  Bc3 {[%clk 0:00:00]} 45. Rb6 {[%clk 0:00:26]} 1-0


[Site "https://www.chess.com"]

[Event "Titled Tuesday Blitz August 22 Late 2023"]
[White "Svane, Rasmus"]
[Black "So, Wesley"]
[WhiteFideId "4657101"]
[BlackFideId "5202213"]
[WhiteElo "2986"]
[BlackElo "3090"]
[Result "0-1"]
[Round "10"]
[TimeControl "180+1"]
[Date "2023.08.22"]
[WhiteClock "0:00:00"]
[BlackClock "0:01:13"]
[Board "6"]

1. Nf3 {[%clk 0:03:00]}  c5 {[%clk 0:02:58]} 2. c4 {[%clk 0:03:00]}  Nf6 {[%clk 0:02:57]} 3. Nc3 {[%clk 0:03:00]}  e6 {[%clk 0:02:56]} 4. e3 {[%clk 0:02:56]}  d5 {[%clk 0:02:53]} 5. d4 {[%clk 0:02:55]}  a6 {[%clk 0:02:52]} 6. dxc5 {[%clk 0:02:13]}  Bxc5 {[%clk 0:02:51]} 7. a3 {[%clk 0:02:13]}  dxc4 {[%clk 0:02:45]} 8. Qxd8+ {[%clk 0:02:11]}  Kxd8 {[%clk 0:02:46]} 9. Bxc4 {[%clk 0:02:09]}  b5 {[%clk 0:02:43]} 10. Bd3 {[%clk 0:02:09]}  Bb7 {[%clk 0:02:42]} 11. b4 {[%clk 0:02:09]}  Bd6 {[%clk 0:02:42]} 12. Bb2 {[%clk 0:02:09]}  Ke7 {[%clk 0:02:42]} 13. Ke2 {[%clk 0:02:07]}  Nbd7 {[%clk 0:02:41]} 14. Rhd1 {[%clk 0:02:02]}  Rhc8 {[%clk 0:02:36]} 15. Rac1 {[%clk 0:01:57]}  Nb6 {[%clk 0:02:13]} 16. h3 {[%clk 0:01:56]}  Nc4 {[%clk 0:02:09]} 17. Bxc4 {[%clk 0:01:43]}  Rxc4 {[%clk 0:02:10]} 18. Nd2 {[%clk 0:01:44]}  Rc7 {[%clk 0:02:07]} 19. g4 {[%clk 0:01:45]}  h6 {[%clk 0:02:04]} 20. f3 {[%clk 0:01:30]}  Rac8 {[%clk 0:02:02]} 21. Nce4 {[%clk 0:01:28]}  Rxc1 {[%clk 0:01:57]} 22. Rxc1 {[%clk 0:01:29]}  Rxc1 {[%clk 0:01:56]} 23. Bxc1 {[%clk 0:01:29]}  Bxe4 {[%clk 0:01:51]} 24. Nxe4 {[%clk 0:01:24]}  Nxe4 {[%clk 0:01:51]} 25. fxe4 {[%clk 0:01:25]}  Be5 {[%clk 0:01:49]} 26. h4 {[%clk 0:01:11]}  Kf6 {[%clk 0:01:49]} 27. Bd2 {[%clk 0:00:59]}  Bb2 {[%clk 0:01:43]} 28. Kd3 {[%clk 0:01:00]}  g6 {[%clk 0:01:23]} 29. Kc2 {[%clk 0:00:56]}  Ba1 {[%clk 0:01:22]} 30. Be1 {[%clk 0:00:49]}  h5 {[%clk 0:01:22]} 31. gxh5 {[%clk 0:00:46]}  gxh5 {[%clk 0:01:22]} 32. Kb1 {[%clk 0:00:37]}  Be5 {[%clk 0:01:22]} 33. Kc2 {[%clk 0:00:38]}  Ke7 {[%clk 0:01:20]} 34. Kb3 {[%clk 0:00:36]}  Kd6 {[%clk 0:01:16]} 35. a4 {[%clk 0:00:36]}  f5 {[%clk 0:01:12]} 36. axb5 {[%clk 0:00:35]}  axb5 {[%clk 0:01:13]} 37. exf5 {[%clk 0:00:28]}  exf5 {[%clk 0:01:14]} 38. Kc2 {[%clk 0:00:21]}  Kd5 {[%clk 0:01:14]} 39. Kd3 {[%clk 0:00:22]}  Bd6 {[%clk 0:01:15]} 40. Bc3 {[%clk 0:00:22]}  Bg3 {[%clk 0:01:14]} 41. Bf6 {[%clk 0:00:22]}  Be1 {[%clk 0:01:15]} 42. Be7 {[%clk 0:00:21]}  Ke6 {[%clk 0:01:14]} 43. Bc5 {[%clk 0:00:15]}  Kd5 {[%clk 0:01:13]} 44. Be7 {[%clk 0:00:15]}  Bg3 {[%clk 0:01:13]} 45. Bf6 {[%clk 0:00:12]}  Bd6 {[%clk 0:01:13]} 46. Bc3 {[%clk 0:00:12]}  Bf8 {[%clk 0:01:13]} 47. Bd2 {[%clk 0:00:11]}  Bg7 {[%clk 0:01:13]} 48. Be1 {[%clk 0:00:09]}  Be5 {[%clk 0:01:13]} 49. Bf2 {[%clk 0:00:07]}  Bd6 {[%clk 0:01:13]} 50. Be1 {[%clk 0:00:04]}  Be7 {[%clk 0:01:14]} 51. Bc3 {[%clk 0:00:00]}  Bxh4 {[%clk 0:01:13]} 0-1


[Site "https://www.chess.com"]

[Event "Titled Tuesday Blitz August 22 Late 2023"]
[White "Zhigalko, Sergei"]
[Black "Duda, Jan-Krzysztof"]
[WhiteFideId "13502956"]
[BlackFideId "1170546"]
[WhiteElo "2960"]
[BlackElo "3088"]
[Result "0-1"]
[Round "10"]
[TimeControl "180+1"]
[Date "2023.08.22"]
[WhiteClock "0:00:00"]
[BlackClock "0:00:12"]
[Board "7"]

1. e4 {[%clk 0:03:00]}  c6 {[%clk 0:03:00]} 2. d4 {[%clk 0:03:00]}  d5 {[%clk 0:03:01]} 3. e5 {[%clk 0:02:59]}  Bf5 {[%clk 0:03:00]} 4. Nf3 {[%clk 0:02:59]}  e6 {[%clk 0:03:00]} 5. Be2 {[%clk 0:02:58]}  c5 {[%clk 0:02:58]} 6. Be3 {[%clk 0:02:58]}  Qb6 {[%clk 0:02:58]} 7. Nc3 {[%clk 0:02:56]}  Nc6 {[%clk 0:02:56]} 8. dxc5 {[%clk 0:02:56]}  Bxc5 {[%clk 0:02:53]} 9. Bxc5 {[%clk 0:02:57]}  Qxc5 {[%clk 0:02:53]} 10. Nb5 {[%clk 0:02:57]}  Kf8 {[%clk 0:02:46]} 11. Nbd4 {[%clk 0:02:56]}  Nge7 {[%clk 0:02:43]} 12. O-O {[%clk 0:02:55]}  Nxd4 {[%clk 0:02:38]} 13. Nxd4 {[%clk 0:02:54]}  Rc8 {[%clk 0:02:38]} 14. c3 {[%clk 0:02:52]}  a6 {[%clk 0:02:36]} 15. Re1 {[%clk 0:02:46]}  Rc7 {[%clk 0:02:31]} 16. h4 {[%clk 0:02:28]}  h5 {[%clk 0:02:27]} 17. Bd3 {[%clk 0:02:21]}  g6 {[%clk 0:02:20]} 18. Qd2 {[%clk 0:02:18]}  Bxd3 {[%clk 0:02:12]} 19. Qxd3 {[%clk 0:02:18]}  Nf5 {[%clk 0:02:08]} 20. Nf3 {[%clk 0:01:39]}  Qc4 {[%clk 0:02:01]} 21. Qxc4 {[%clk 0:01:18]}  Rxc4 {[%clk 0:02:02]} 22. g3 {[%clk 0:01:18]}  Ke7 {[%clk 0:02:03]} 23. Red1 {[%clk 0:01:04]}  Rhc8 {[%clk 0:02:01]} 24. Rd3 {[%clk 0:01:03]}  Re4 {[%clk 0:01:58]} 25. Kf1 {[%clk 0:01:02]}  Rc5 {[%clk 0:01:57]} 26. Re1 {[%clk 0:01:00]}  Ra5 {[%clk 0:01:55]} 27. a3 {[%clk 0:00:58]}  Rb5 {[%clk 0:01:56]} 28. Rd2 {[%clk 0:00:53]}  Rc4 {[%clk 0:01:43]} 29. Red1 {[%clk 0:00:48]}  Rb6 {[%clk 0:01:40]} 30. Ke2 {[%clk 0:00:41]}  Nh6 {[%clk 0:01:14]} 31. Nd4 {[%clk 0:00:37]}  Ng4 {[%clk 0:01:13]} 32. f4 {[%clk 0:00:37]}  Nh6 {[%clk 0:01:11]} 33. Kd3 {[%clk 0:00:22]}  Nf5 {[%clk 0:01:10]} 34. Nxf5+ {[%clk 0:00:14]}  gxf5 {[%clk 0:01:11]} 35. Kc2 {[%clk 0:00:14]}  Rbc6 {[%clk 0:01:09]} 36. Rd4 {[%clk 0:00:12]}  R4c5 {[%clk 0:00:49]} 37. R1d3 {[%clk 0:00:11]}  Kd7 {[%clk 0:00:48]} 38. Rb4 {[%clk 0:00:10]}  Kc7 {[%clk 0:00:47]} 39. Kd2 {[%clk 0:00:10]}  Kb8 {[%clk 0:00:45]} 40. Rbd4 {[%clk 0:00:10]}  Rc8 {[%clk 0:00:44]} 41. Kc2 {[%clk 0:00:10]}  Ka7 {[%clk 0:00:44]} 42. Kd2 {[%clk 0:00:08]}  b5 {[%clk 0:00:39]} 43. Kc2 {[%clk 0:00:08]}  Kb6 {[%clk 0:00:40]} 44. Kd2 {[%clk 0:00:06]}  Rg8 {[%clk 0:00:40]} 45. Kc2 {[%clk 0:00:06]}  Rcc8 {[%clk 0:00:41]} 46. Kd2 {[%clk 0:00:05]}  Rg4 {[%clk 0:00:41]} 47. Re3 {[%clk 0:00:06]}  Rcg8 {[%clk 0:00:40]} 48. Rdd3 {[%clk 0:00:06]}  a5 {[%clk 0:00:40]} 49. Kc2 {[%clk 0:00:06]}  Rc8 {[%clk 0:00:40]} 50. Kb3 {[%clk 0:00:05]}  Rc4 {[%clk 0:00:39]} 51. Rd2 {[%clk 0:00:05]}  Rg8 {[%clk 0:00:38]} 52. Red3 {[%clk 0:00:03]}  Re4 {[%clk 0:00:30]} 53. Rf3 {[%clk 0:00:03]}  Kc5 {[%clk 0:00:26]} 54. Rdd3 {[%clk 0:00:03]}  Re2 {[%clk 0:00:26]} 55. Rde3 {[%clk 0:00:03]}  Rg2 {[%clk 0:00:18]} 56. Rd3 {[%clk 0:00:03]}  Rb8 {[%clk 0:00:16]} 57. Rfe3 {[%clk 0:00:02]}  Kb6 {[%clk 0:00:10]} 58. Rf3 {[%clk 0:00:02]}  Rc8 {[%clk 0:00:11]} 59. Rfe3 {[%clk 0:00:02]}  Rc4 {[%clk 0:00:11]} 60. Rf3 {[%clk 0:00:02]}  Re4 {[%clk 0:00:11]} 61. Rfe3 {[%clk 0:00:02]}  Kc5 {[%clk 0:00:12]} 62. Ka2 {[%clk 0:00:02]}  Kc4 {[%clk 0:00:12]} 63. Rf3 {[%clk 0:00:00]}  Ree2 {[%clk 0:00:12]} 0-1


[Site "https://www.chess.com"]

[Event "Titled Tuesday Blitz August 22 Late 2023"]
[White "Vasquez Schroeder, Rodrigo"]
[Black "Deac, Bogdan-Daniel"]
[WhiteFideId "3400042"]
[BlackFideId "1226380"]
[WhiteElo "2974"]
[BlackElo "3040"]
[Result "0-1"]
[Round "10"]
[TimeControl "180+1"]
[Date "2023.08.22"]
[WhiteClock "0:00:17"]
[BlackClock "0:00:05"]
[Board "8"]

1. e4 {[%clk 0:03:00]}  e5 {[%clk 0:03:00]} 2. Nf3 {[%clk 0:03:01]}  Nf6 {[%clk 0:03:01]} 3. d3 {[%clk 0:02:56]}  Nc6 {[%clk 0:03:01]} 4. c3 {[%clk 0:02:56]}  d5 {[%clk 0:03:00]} 5. Nbd2 {[%clk 0:02:56]}  a5 {[%clk 0:03:00]} 6. Be2 {[%clk 0:02:56]}  g6 {[%clk 0:03:00]} 7. O-O {[%clk 0:02:56]}  Bg7 {[%clk 0:03:00]} 8. Re1 {[%clk 0:02:57]}  O-O {[%clk 0:03:00]} 9. Bf1 {[%clk 0:02:57]}  Re8 {[%clk 0:03:00]} 10. b3 {[%clk 0:02:57]}  h6 {[%clk 0:02:58]} 11. a3 {[%clk 0:02:57]}  Be6 {[%clk 0:02:54]} 12. Bb2 {[%clk 0:02:57]}  Nd7 {[%clk 0:02:24]} 13. Qc2 {[%clk 0:02:47]}  g5 {[%clk 0:02:06]} 14. h3 {[%clk 0:02:44]}  Ne7 {[%clk 0:02:02]} 15. exd5 {[%clk 0:02:24]}  Bxd5 {[%clk 0:02:02]} 16. c4 {[%clk 0:02:23]}  Bxf3 {[%clk 0:02:02]} 17. Nxf3 {[%clk 0:02:23]}  Nc6 {[%clk 0:02:02]} 18. Rad1 {[%clk 0:02:13]}  Nc5 {[%clk 0:01:48]} 19. d4 {[%clk 0:01:45]}  exd4 {[%clk 0:01:37]} 20. Rxe8+ {[%clk 0:01:45]}  Qxe8 {[%clk 0:01:38]} 21. Nxd4 {[%clk 0:01:45]}  Nxd4 {[%clk 0:01:38]} 22. Bxd4 {[%clk 0:01:46]}  Bxd4 {[%clk 0:01:33]} 23. Rxd4 {[%clk 0:01:46]}  Rd8 {[%clk 0:01:34]} 24. Rxd8 {[%clk 0:01:40]}  Qxd8 {[%clk 0:01:35]} 25. b4 {[%clk 0:01:41]}  axb4 {[%clk 0:01:35]} 26. axb4 {[%clk 0:01:41]}  Ne6 {[%clk 0:01:35]} 27. Qe4 {[%clk 0:01:38]}  b6 {[%clk 0:01:33]} 28. Bd3 {[%clk 0:01:36]}  Kf8 {[%clk 0:01:21]} 29. g3 {[%clk 0:01:25]}  Qd6 {[%clk 0:01:17]} 30. Qh7 {[%clk 0:01:21]}  Ke7 {[%clk 0:01:12]} 31. Bf5 {[%clk 0:01:15]}  Nd4 {[%clk 0:00:46]} 32. Bg4 {[%clk 0:01:09]}  Nc6 {[%clk 0:00:16]} 33. c5 {[%clk 0:01:04]}  bxc5 {[%clk 0:00:16]} 34. bxc5 {[%clk 0:01:05]}  Qxc5 {[%clk 0:00:14]} 35. Qxh6 {[%clk 0:01:04]}  Nd4 {[%clk 0:00:12]} 36. Bh5 {[%clk 0:00:59]}  Qf5 {[%clk 0:00:08]} 37. Qg7 {[%clk 0:00:52]}  Qf6 {[%clk 0:00:06]} 38. Qg8 {[%clk 0:00:49]}  c5 {[%clk 0:00:04]} 39. Qc8 {[%clk 0:00:49]}  Ne6 {[%clk 0:00:04]} 40. Bg4 {[%clk 0:00:45]}  Qa1+ {[%clk 0:00:04]} 41. Kg2 {[%clk 0:00:43]}  Qe5 {[%clk 0:00:05]} 42. Bh5 {[%clk 0:00:36]}  Qd5+ {[%clk 0:00:05]} 43. Kh2 {[%clk 0:00:36]}  Nd4 {[%clk 0:00:05]} 44. Qc7+ {[%clk 0:00:33]}  Kf8 {[%clk 0:00:05]} 45. Bxf7 {[%clk 0:00:26]}  Nf3+ {[%clk 0:00:05]} 46. Kg2 {[%clk 0:00:23]}  Nh4+ {[%clk 0:00:05]} 47. Kf1 {[%clk 0:00:17]}  Qd1# {[%clk 0:00:05]} 0-1


[Site "https://www.chess.com"]

[Event "Titled Tuesday Blitz August 22 Late 2023"]
[White "Grischuk, Alexander"]
[Black "Dominguez Perez, Leinier"]
[WhiteFideId "4126025"]
[BlackFideId "3503240"]
[WhiteElo "3007"]
[BlackElo "2928"]
[Result "1-0"]
[Round "10"]
[TimeControl "180+1"]
[Date "2023.08.22"]
[WhiteClock "0:00:02"]
[BlackClock "0:00:00"]
[Board "10"]

1. d4 {[%clk 0:03:00]}  Nf6 {[%clk 0:02:59]} 2. c4 {[%clk 0:03:01]}  e6 {[%clk 0:03:00]} 3. Bg5 {[%clk 0:03:02]}  h6 {[%clk 0:02:59]} 4. Bh4 {[%clk 0:03:02]}  c5 {[%clk 0:02:52]} 5. d5 {[%clk 0:03:02]}  exd5 {[%clk 0:02:45]} 6. cxd5 {[%clk 0:03:03]}  d6 {[%clk 0:02:44]} 7. e4 {[%clk 0:02:36]}  Be7 {[%clk 0:02:30]} 8. Bg3 {[%clk 0:02:19]}  O-O {[%clk 0:02:21]} 9. Nd2 {[%clk 0:02:16]}  Nxe4 {[%clk 0:01:52]} 10. Nxe4 {[%clk 0:02:15]}  f5 {[%clk 0:01:53]} 11. Nc3 {[%clk 0:01:50]}  f4 {[%clk 0:01:52]} 12. Bd3 {[%clk 0:01:50]}  fxg3 {[%clk 0:01:29]} 13. hxg3 {[%clk 0:01:50]}  Nd7 {[%clk 0:01:28]} 14. Nf3 {[%clk 0:01:39]}  Bf6 {[%clk 0:01:27]} 15. O-O {[%clk 0:00:57]}  Ne5 {[%clk 0:01:08]} 16. Nxe5 {[%clk 0:00:57]}  Bxe5 {[%clk 0:01:09]} 17. Qd2 {[%clk 0:00:52]}  Qg5 {[%clk 0:00:41]} 18. Qc2 {[%clk 0:00:52]}  Bf5 {[%clk 0:00:34]} 19. Rae1 {[%clk 0:00:47]}  Bxd3 {[%clk 0:00:24]} 20. Qxd3 {[%clk 0:00:48]}  Rae8 {[%clk 0:00:10]} 21. Nb5 {[%clk 0:00:32]}  Qd8 {[%clk 0:00:08]} 22. Nxa7 {[%clk 0:00:26]}  Bxb2 {[%clk 0:00:07]} 23. Nb5 {[%clk 0:00:27]}  Be5 {[%clk 0:00:07]} 24. f4 {[%clk 0:00:26]}  Bf6 {[%clk 0:00:07]} 25. Kh2 {[%clk 0:00:18]}  Qd7 {[%clk 0:00:07]} 26. a4 {[%clk 0:00:17]}  Ra8 {[%clk 0:00:03]} 27. Re4 {[%clk 0:00:12]}  Ra6 {[%clk 0:00:03]} 28. Rfe1 {[%clk 0:00:11]}  Qf7 {[%clk 0:00:03]} 29. Qd1 {[%clk 0:00:07]}  Rfa8 {[%clk 0:00:02]} 30. Re6 {[%clk 0:00:06]}  Rxa4 {[%clk 0:00:01]} 31. Nxd6 {[%clk 0:00:06]}  Qg6 {[%clk 0:00:01]} 32. f5 {[%clk 0:00:05]}  Qg5 {[%clk 0:00:01]} 33. Ne4 {[%clk 0:00:04]}  Qxf5 {[%clk 0:00:01]} 34. Nxf6+ {[%clk 0:00:04]}  gxf6 {[%clk 0:00:02]} 35. Rf1 {[%clk 0:00:04]}  Qg5 {[%clk 0:00:02]} 36. Rfxf6 {[%clk 0:00:04]}  Rg4 {[%clk 0:00:02]} 37. Rxh6 {[%clk 0:00:03]}  Rxg3 {[%clk 0:00:02]} 38. Qe2 {[%clk 0:00:03]}  Rf8 {[%clk 0:00:01]} 39. d6 {[%clk 0:00:02]}  Rg4 {[%clk 0:00:01]} 40. Reg6+ {[%clk 0:00:02]}  Qxg6 {[%clk 0:00:02]} 41. Rxg6+ {[%clk 0:00:02]}  Rxg6 {[%clk 0:00:03]} 42. d7 {[%clk 0:00:02]}  Rh6+ {[%clk 0:00:04]} 43. Kg1 {[%clk 0:00:02]}  Rh8 {[%clk 0:00:00]} 44. Qe7 {[%clk 0:00:02]} 1-0


[Site "https://www.chess.com"]

[Event "Titled Tuesday Blitz August 22 Late 2023"]
[White "Nihal Sarin"]
[Black "Gorovets, Andrey"]
[WhiteFideId "25092340"]
[BlackFideId "13504037"]
[WhiteElo "3141"]
[BlackElo "2816"]
[Result "1-0"]
[Round "10"]
[TimeControl "180+1"]
[Date "2023.08.22"]
[WhiteClock "0:00:14"]
[BlackClock "0:00:00"]
[Board "12"]

1. Nf3 {[%clk 0:02:59]}  c5 {[%clk 0:02:59]} 2. g3 {[%clk 0:02:59]}  g6 {[%clk 0:02:59]} 3. Bg2 {[%clk 0:02:58]}  Bg7 {[%clk 0:02:58]} 4. O-O {[%clk 0:02:59]}  Nc6 {[%clk 0:02:58]} 5. c4 {[%clk 0:03:00]}  e6 {[%clk 0:02:56]} 6. Nc3 {[%clk 0:02:59]}  d6 {[%clk 0:02:56]} 7. b3 {[%clk 0:02:55]}  Nge7 {[%clk 0:02:52]} 8. Bb2 {[%clk 0:02:55]}  O-O {[%clk 0:02:52]} 9. e3 {[%clk 0:02:53]}  a6 {[%clk 0:02:34]} 10. d4 {[%clk 0:02:50]}  Rb8 {[%clk 0:02:33]} 11. Qd2 {[%clk 0:02:48]}  b5 {[%clk 0:02:23]} 12. d5 {[%clk 0:02:41]}  exd5 {[%clk 0:02:21]} 13. Nxd5 {[%clk 0:02:38]}  Bxb2 {[%clk 0:02:15]} 14. Qxb2 {[%clk 0:02:35]}  Nxd5 {[%clk 0:02:14]} 15. cxd5 {[%clk 0:02:36]}  Nb4 {[%clk 0:02:05]} 16. Qd2 {[%clk 0:02:35]}  a5 {[%clk 0:01:50]} 17. e4 {[%clk 0:02:29]}  Bg4 {[%clk 0:01:49]} 18. a3 {[%clk 0:02:23]}  Bxf3 {[%clk 0:01:47]} 19. Bxf3 {[%clk 0:02:23]}  Na6 {[%clk 0:01:47]} 20. Rfe1 {[%clk 0:02:23]}  Re8 {[%clk 0:01:46]} 21. Kg2 {[%clk 0:02:22]}  b4 {[%clk 0:01:41]} 22. Be2 {[%clk 0:02:19]}  Nc7 {[%clk 0:01:40]} 23. Bc4 {[%clk 0:02:20]}  Nb5 {[%clk 0:01:38]} 24. a4 {[%clk 0:02:03]}  Nd4 {[%clk 0:01:38]} 25. Re3 {[%clk 0:02:00]}  Qf6 {[%clk 0:01:35]} 26. Rae1 {[%clk 0:02:01]}  g5 {[%clk 0:01:30]} 27. Qd1 {[%clk 0:01:49]}  Qg6 {[%clk 0:01:20]} 28. e5 {[%clk 0:01:45]}  Nf5 {[%clk 0:00:59]} 29. e6 {[%clk 0:01:31]}  Nxe3+ {[%clk 0:00:56]} 30. Rxe3 {[%clk 0:01:32]}  f5 {[%clk 0:00:46]} 31. e7 {[%clk 0:01:18]}  Rb7 {[%clk 0:00:38]} 32. Re6 {[%clk 0:01:17]}  Qg7 {[%clk 0:00:29]} 33. Rxd6 {[%clk 0:00:59]}  Rbxe7 {[%clk 0:00:29]} 34. Qh5 {[%clk 0:00:57]}  Kh8 {[%clk 0:00:14]} 35. Re6 {[%clk 0:00:39]}  Rxe6 {[%clk 0:00:13]} 36. dxe6 {[%clk 0:00:40]}  Qe7 {[%clk 0:00:10]} 37. Qf3 {[%clk 0:00:39]}  Rf8 {[%clk 0:00:09]} 38. Qd5 {[%clk 0:00:39]}  f4 {[%clk 0:00:09]} 39. Qe5+ {[%clk 0:00:38]}  Kg8 {[%clk 0:00:08]} 40. g4 {[%clk 0:00:34]}  f3+ {[%clk 0:00:08]} 41. Kg3 {[%clk 0:00:28]}  Rd8 {[%clk 0:00:07]} 42. Qxc5 {[%clk 0:00:17]}  Rd6 {[%clk 0:00:00]} 43. Qxa5 {[%clk 0:00:14]} 1-0


[Site "https://www.chess.com"]

[Event "Titled Tuesday Blitz August 22 Late 2023"]
[White "Keymer, Vincent"]
[Black "Troff, Kayden"]
[WhiteFideId "12940690"]
[BlackFideId "2047896"]
[WhiteElo "2964"]
[BlackElo "2764"]
[Result "0-1"]
[Round "10"]
[TimeControl "180+1"]
[Date "2023.08.22"]
[WhiteClock "0:00:00"]
[BlackClock "0:00:14"]
[Board "13"]

1. a3 {[%clk 0:03:00]}  g6 {[%clk 0:02:56]} 2. Nf3 {[%clk 0:02:57]}  Bg7 {[%clk 0:02:55]} 3. d4 {[%clk 0:02:58]}  Nf6 {[%clk 0:02:55]} 4. b4 {[%clk 0:02:58]}  a5 {[%clk 0:02:54]} 5. b5 {[%clk 0:02:57]}  c5 {[%clk 0:02:48]} 6. bxc6 {[%clk 0:02:56]}  bxc6 {[%clk 0:02:45]} 7. e3 {[%clk 0:02:52]}  O-O {[%clk 0:02:42]} 8. Bd3 {[%clk 0:02:51]}  c5 {[%clk 0:02:41]} 9. c4 {[%clk 0:02:50]}  cxd4 {[%clk 0:02:40]} 10. exd4 {[%clk 0:02:51]}  d5 {[%clk 0:02:40]} 11. c5 {[%clk 0:02:50]}  Nc6 {[%clk 0:02:35]} 12. h3 {[%clk 0:02:49]}  Ne4 {[%clk 0:02:33]} 13. Bb5 {[%clk 0:02:41]}  Qc7 {[%clk 0:02:23]} 14. O-O {[%clk 0:02:36]}  Ba6 {[%clk 0:02:11]} 15. a4 {[%clk 0:02:31]}  e5 {[%clk 0:02:06]} 16. dxe5 {[%clk 0:01:46]}  Nxe5 {[%clk 0:02:06]} 17. Ra2 {[%clk 0:01:40]}  Bxb5 {[%clk 0:01:56]} 18. axb5 {[%clk 0:01:38]}  Qxc5 {[%clk 0:01:55]} 19. Nxe5 {[%clk 0:01:33]}  Bxe5 {[%clk 0:01:52]} 20. Ba3 {[%clk 0:01:34]}  Qxb5 {[%clk 0:01:19]} 21. Bxf8 {[%clk 0:01:34]}  Kxf8 {[%clk 0:01:13]} 22. Na3 {[%clk 0:01:19]}  Qc5 {[%clk 0:01:06]} 23. Rc2 {[%clk 0:01:12]}  Nc3 {[%clk 0:01:01]} 24. Nb1 {[%clk 0:01:11]}  a4 {[%clk 0:00:47]} 25. Re1 {[%clk 0:00:31]}  d4 {[%clk 0:00:33]} 26. Qf3 {[%clk 0:00:21]}  Rb8 {[%clk 0:00:29]} 27. Nxc3 {[%clk 0:00:19]}  dxc3 {[%clk 0:00:30]} 28. Qe4 {[%clk 0:00:18]}  Bd4 {[%clk 0:00:21]} 29. g3 {[%clk 0:00:10]}  a3 {[%clk 0:00:17]} 30. Rd1 {[%clk 0:00:10]}  Rb4 {[%clk 0:00:15]} 31. Qa8+ {[%clk 0:00:10]}  Kg7 {[%clk 0:00:14]} 32. Qxa3 {[%clk 0:00:00]}  Rb1 {[%clk 0:00:14]} 0-1


[Site "https://www.chess.com"]

[Event "Titled Tuesday Blitz August 22 Late 2023"]
[White "Mendez Fortes, Eduardo Jesus"]
[Black "Chigaev, Maksim"]
[WhiteFideId "3502376"]
[BlackFideId "4108116"]
[WhiteElo "2668"]
[BlackElo "2960"]
[Result "1-0"]
[Round "10"]
[TimeControl "180+1"]
[Date "2023.08.22"]
[WhiteClock "0:01:18"]
[BlackClock "0:00:30"]
[Board "14"]

1. e4 {[%clk 0:03:00]}  e5 {[%clk 0:02:59]} 2. Nf3 {[%clk 0:03:00]}  Nc6 {[%clk 0:03:00]} 3. Bb5 {[%clk 0:03:01]}  a6 {[%clk 0:03:00]} 4. Ba4 {[%clk 0:03:01]}  Nf6 {[%clk 0:02:59]} 5. O-O {[%clk 0:03:02]}  Be7 {[%clk 0:02:59]} 6. Re1 {[%clk 0:03:02]}  b5 {[%clk 0:02:59]} 7. Bb3 {[%clk 0:03:02]}  d6 {[%clk 0:02:59]} 8. c3 {[%clk 0:03:03]}  O-O {[%clk 0:03:00]} 9. h3 {[%clk 0:03:03]}  Na5 {[%clk 0:02:59]} 10. Bc2 {[%clk 0:03:03]}  c5 {[%clk 0:02:59]} 11. d4 {[%clk 0:03:03]}  Nd7 {[%clk 0:03:00]} 12. Nbd2 {[%clk 0:03:00]}  exd4 {[%clk 0:03:00]} 13. cxd4 {[%clk 0:03:00]}  Nc6 {[%clk 0:03:00]} 14. a4 {[%clk 0:02:57]}  Rb8 {[%clk 0:02:51]} 15. d5 {[%clk 0:02:57]}  Nce5 {[%clk 0:02:51]} 16. Nxe5 {[%clk 0:02:56]}  Nxe5 {[%clk 0:02:52]} 17. f4 {[%clk 0:02:55]}  Ng6 {[%clk 0:02:52]} 18. Nf3 {[%clk 0:02:50]}  Bh4 {[%clk 0:02:52]} 19. Rf1 {[%clk 0:02:50]}  Bg3 {[%clk 0:02:52]} 20. f5 {[%clk 0:02:23]}  Ne5 {[%clk 0:02:51]} 21. Ng5 {[%clk 0:02:22]}  h6 {[%clk 0:02:44]} 22. f6 {[%clk 0:02:17]}  gxf6 {[%clk 0:02:16]} 23. Nf3 {[%clk 0:02:17]}  Kg7 {[%clk 0:02:04]} 24. Nh2 {[%clk 0:02:05]}  Rh8 {[%clk 0:01:52]} 25. Qh5 {[%clk 0:01:59]}  bxa4 {[%clk 0:01:43]} 26. Ra3 {[%clk 0:01:56]}  Bxh2+ {[%clk 0:01:40]} 27. Kxh2 {[%clk 0:01:55]}  Qe7 {[%clk 0:01:36]} 28. Rg3+ {[%clk 0:01:45]}  Ng6 {[%clk 0:01:35]} 29. e5 {[%clk 0:01:42]}  f5 {[%clk 0:01:22]} 30. e6 {[%clk 0:01:39]}  Rb4 {[%clk 0:00:30]} 31. Rxf5 {[%clk 0:01:18]} 1-0


[Site "https://www.chess.com"]